[Event "FIDE WSTC Open 50 2025"]
[Site "Prague"]
[Date "2025.02.21"]
[Round "5.26"]
[White "Kirszenberg, Marc"]
[Black "Van Haastert, Edwin"]
[Result "0-1"]
[Annotator "TA"]
[ECO "E20"]
[WhiteElo "2080"]
[BlackElo "2408"]
[PlyCount "66"]
[EventDate "2025.02.17"]
[EventType "team-tourn"]
[EventCountry "CZE"]
[SourceTitle "playchess.com"]
[Source "ChessBase"]
[SourceQuality "1"]
[TimeControl "40/5400+30:1800+30"]

{[%evp 10,66,0,0,20,-10,-4,-13,4,12,0,0,0,0,0,0,0,5,0,0,0,0,0,0,-7,-117,-111,-201,-189,-189,-189,-199,-188,-285,-287,-300,-292,-306,-289,-287,-243,-300,-278,-375,-190,-289,-298,-286,-248,-293,-272,-320,-311,-559,-530,-394,-275,-943,-877]} 1. d4 {[%emt 0:00:03][%cal Bd2d4,Bd4d5][%mdl 32]} Nf6 {[%emt 0:00:05]} 2. c4 {[%emt 0:00:06]} e6 {[%emt 0:00:07]} 3. Nc3 {[%emt 0:00:03]} Bb4 {[%emt 0:00:08]} 4. f3 {[%emt 0:00:06]} c5 {[%emt 0:00:06]} 5. d5 {[%emt 0:00:04]} d6 {[%emt 0:00:05]} 6. e4 {[%emt 0:00:26]} b5 {[%emt 0:00:06] E20: Nimzo-Indian: 4 g3 and 4 f3.} 7. Nge2 {[%emt 0:00:13]} bxc4 {[%emt 0:00:24]} 8. Nf4 {[%emt 0:00:04]} g5 {[%emt 0:00:17] The position is equal.} (8... e5 $5 9. Nfe2 $8 Nbd7 $11) 9. Nfe2 {[%emt 0:00:07]} exd5 {[%emt 0:00:07]} 10. exd5 {[%emt 0:00:44]} Qe7 {[%emt 0:00:10]} 11. Bxg5 {[%emt 0:00:46]} Bxc3+ {[%emt 0:02:43]} 12. bxc3 {[%emt 0:00:13]} Nbd7 {[%emt 0:00:20] Active counter play!} 13. Qd2 {[%emt 0:11:33] next 0-0-0 is good for White.} Rg8 {[%emt 0:00:34][%cal Og8g5]} 14. h4 {[%emt 0:06:36]} Ne5 {[%emt 0:02:09]} 15. Kf2 {[%emt 0:13:12]} h6 $1 {[%emt 0:01:43]} 16. Bxh6 {[%emt 0:01:19]} Nh5 {[%emt 0:00:06] Black sacrificed a pawn Prevents Ng3.} (16... Nd3+ $5 17. Kg1 Rb8 $14) 17. Nf4 $146 {[%emt 0:15:34]} (17. Rh2 $11) (17. Rh2 Nd3+ 18. Kg1 Ne5 19. Kf2 Nd3+ 20. Kg1 Ne5 21. Kf2 Nd3+ {½-½ Xu,X (2623)-Lu,S (2607) CHN-chT Div A Finals 2023 (4.1)}) 17... Ng3 $17 {[%emt 0:00:39] Excellent horsemanship. Black keeps a firm grip on the game.} 18. Rh2 {[%emt 0:00:40] [#]} (18. Be2 $17) 18... Ne4+ $1 $19 {[%emt 0:00:49][%mdl 512]} 19. fxe4 {[%emt 0:00:24]} Ng4+ {[%emt 0:00:04]} 20. Kg1 {[%emt 0:01:48][%cal Of4h3]} Nxh2 {[%emt 0:00:09]} 21. Kxh2 {[%emt 0:00:05]} (21. Bg5 f6 22. Kxh2 fxg5 23. hxg5) 21... Qxh4+ {[%emt 0:00:41]} 22. Kg1 {[%emt 0:03:58] Ne2 is the strong threat.} Qxh6 {[%emt 0:00:13]} 23. Bxc4 {[%emt 0:00:06]} Rb8 {[%emt 0:06:47]} 24. Rf1 {[%emt 0:03:24]} Rh8 {[%emt 0:03:56]} 25. Bb3 {[%emt 0:04:12]} Bd7 {[%emt 0:04:51]} 26. Qe3 {[%emt 0:02:35]} Qg5 {[%emt 0:08:32]} (26... c4 $142 27. Bd1 Qh2+ 28. Kf2 Rb2+ 29. Ke1 Rg8 (29... Rxa2 $2 30. e5 $19)) 27. Qf2 {[%emt 0:04:43]} (27. e5 {might work better.} dxe5 (27... Qxe5 28. Qxe5+ dxe5 29. Nd3 $11) 28. d6) 27... Qe5 {[%emt 0:06:12][%csl LRc3,LRe4]} 28. Qe3 Rh6 {[%emt 0:05:48]} 29. Rf3 {[%emt 0:03:31]} Ke7 {[%emt 0:03:23]} 30. Nd3 {[%emt 0:04:50]} Qh2+ {[%emt 0:00:43]} (30... Qxc3 $2 {is the wrong capture.} 31. Qxh6 Qa1+ 32. Kf2 Qd4+ 33. Re3 $18) 31. Kf2 $2 {[%emt 0:00:31]} (31. Kf1 {was the only defense.} Qh1+ 32. Ke2 Qxg2+ 33. Nf2) 31... Rg8 {[%emt 0:03:28]} 32. Nf4 {[%emt 0:00:23]} Rg5 {[%emt 0:01:52] And now ...Rf6 would win.} 33. Rg3 $2 {[%emt 0:05:18]} (33. Ke1) 33... Qh4 {[%emt 0:01:24] Weighted Error Value: White=0.68/Black=0.24 (precise)   Mistake:       	White=6     	Black=1      Inaccurate:     	White=2     	Black=1      OK:         	White=8     	Black=10     Best:        	White=4     	Black=8      Strong:       	---       	Black=1      Brilliant:      	---       	Black=1} 0-1

[Event "FIDE WSTC Open 50 2025"]
[Site "Prague"]
[Date "2025.02.21"]
[Round "5.28"]
[White "Keller, Christophe"]
[Black "Kindt, Manfred"]
[Result "1/2-1/2"]
[Annotator "NA"]
[ECO "C28"]
[WhiteElo "1997"]
[BlackElo "2049"]
[PlyCount "34"]
[EventDate "2025.02.17"]
[EventType "team-tourn"]
[EventCountry "CZE"]
[SourceTitle "playchess.com"]
[Source "ChessBase"]
[SourceQuality "1"]
[TimeControl "40/5400+30:1800+30"]

1. e4 {[%emt 0:00:03]} e5 {[%emt 0:00:08]} 2. Nc3 {[%emt 0:00:13]} Nf6 {[%emt 0:00:10]} 3. Bc4 {[%emt 0:00:14]} Nc6 {[%emt 0:00:32]} 4. d3 {[%emt 0:00:18]} Na5 {[%emt 0:00:27]} 5. Nge2 {[%emt 0:00:29]} Bc5 {[%emt 0:00:53]} 6. Ng3 {[%emt 0:03:51]} Nxc4 {[%emt 0:03:12]} 7. dxc4 {[%emt 0:00:05]} d6 {[%emt 0:06:15]} 8. Na4 {[%emt 0:14:17]} Be6 {[%emt 0:09:55]} 9. Nxc5 {[%emt 0:05:02]} dxc5 {[%emt 0:00:21]} 10. Qxd8+ {[%emt 0:02:26]} Rxd8 {[%emt 0:00:31]} 11. b3 {[%emt 0:00:03]} Nd7 {[%emt 0:10:35]} 12. Bb2 {[%emt 0:11:43]} O-O {[%emt 0:05:06]} 13. O-O {[%emt 0:06:11]} f6 {[%emt 0:01:33]} 14. Rfd1 {[%emt 0:05:39]} Nb8 {[%emt 0:03:21]} 15. Nf1 {[%emt 0:00:56]} Nc6 {[%emt 0:04:11]} 16. Ne3 {[%emt 0:04:11]} Rxd1+ {[%emt 0:09:40]} 17. Rxd1 {[%emt 0:00:58]} Rd8 {[%emt 0:00:52]} 1/2-1/2

[Event "FIDE WSTC Open 50 2025"]
[Site "Prague"]
[Date "2025.02.21"]
[Round "5.29"]
[White "Zimmermann, Luc"]
[Black "Wang, Pin"]
[Result "1/2-1/2"]
[Annotator "TA"]
[ECO "B15"]
[WhiteElo "2177"]
[BlackElo "2389"]
[PlyCount "27"]
[EventDate "2025.02.17"]
[EventType "team-tourn"]
[EventCountry "CZE"]
[SourceTitle "playchess.com"]
[Source "ChessBase"]
[SourceQuality "1"]
[TimeControl "40/5400+30:1800+30"]

{[%evp 10,27,39,14,16,21,31,14,19,0,24,20,19,0,12,0,13,7,21,0]} 1. e4 {[%emt 0:00:05]} c6 {[%emt 0:00:08]} 2. d4 {[%emt 0:00:07]} d5 {[%emt 0:00:06]} 3. Nc3 {[%emt 0:00:07]} dxe4 {[%emt 0:00:07]} 4. Nxe4 {[%emt 0:00:07]} Nf6 {[%emt 0:00:12]} 5. Nxf6+ {[%emt 0:00:07]} exf6 {[%emt 0:00:06]} 6. Be3 {[%emt 0:00:14]} Bd6 {[%emt 0:04:51] B15: Caro-Kann: 3 Nc3: 3...g6 and 3...dxe4 4 Nxe4 Nf6 5 Nxf6+ exf6.} 7. Bd3 {[%emt 0:00:08]} O-O {[%emt 0:00:59]} 8. Ne2 {[%emt 0:00:05]} Na6 {[%emt 0:03:05]} 9. c4 {[%emt 0:00:20][%cal Bc2c4,Bc4c5][%mdl 32]} Re8 {[%emt 0:12:52]} 10. O-O {[%emt 0:00:36]} Nc7 {[%emt 0:00:42] The position is equal.} 11. Qc2 {[%emt 0:07:38]} g6 {[%emt 0:02:39]} 12. Rad1 {[%emt 0:26:26]} Bd7 $146 {[%emt 0:09:38]} (12... Be6 13. Nc3 Bf8 14. Bf4 Rc8 15. Rfe1 Qd7 16. Ne4 Qd8 17. Nc5 b6 18. Ne4 h6 {1-0 So,W (2772)-Caruana,F (2791) Speed Chess Chess.com INT blitz 2021 (2.31)}) 13. Qc1 {[%emt 0:12:22]} Qb8 {[%emt 0:11:35]} 14. c5 {[%emt 0:21:36] Not much happened in this game.   Weighted Error Value: White=0.13 (very precise) /Black=0.08 (flawless)   OK:         	White=1     	---        Best:        	---       	Black=1} 1/2-1/2

[Event "FIDE WSTC Open 50 2025"]
[Site "Prague"]
[Date "2025.02.21"]
[Round "5.30"]
[White "Ning, Chunhong"]
[Black "Van der Zwet, Bart"]
[Result "1/2-1/2"]
[Annotator "RC"]
[ECO "B15"]
[WhiteElo "2257"]
[BlackElo "1998"]
[PlyCount "71"]
[EventDate "2025.02.17"]
[EventType "team-tourn"]
[EventCountry "CZE"]
[SourceTitle "playchess.com"]
[Source "ChessBase"]
[SourceQuality "1"]
[TimeControl "40/5400+30:1800+30"]

1. e4 {[%emt 0:00:07]} c6 {[%emt 0:00:55]} 2. d4 {[%emt 0:00:09]} d5 {[%emt 0:00:09]} 3. Nc3 {[%emt 0:00:11]} dxe4 {[%emt 0:00:28]} 4. Nxe4 {[%emt 0:00:04]} Nf6 {[%emt 0:00:34]} 5. Nxf6+ {[%emt 0:00:30]} exf6 {[%emt 0:00:14]} 6. Nf3 {[%emt 0:03:50]} Bd6 {[%emt 0:00:28]} 7. Be2 {[%emt 0:01:03]} O-O {[%emt 0:01:46]} 8. O-O {[%emt 0:00:25]} Re8 {[%emt 0:01:15]} 9. Re1 {[%emt 0:04:06]} Nd7 {[%emt 0:03:40]} 10. Bd3 {[%emt 0:05:44]} Nf8 {[%emt 0:01:19]} 11. Rxe8 {[%emt 0:10:25]} Qxe8 {[%emt 0:00:13]} 12. h3 {[%emt 0:02:21]} Be6 {[%emt 0:03:07]} 13. Bd2 {[%emt 0:02:06]} Qd7 {[%emt 0:03:40]} 14. Qe2 {[%emt 0:07:50]} Re8 {[%emt 0:03:19]} 15. Re1 {[%emt 0:04:00]} Re7 {[%emt 0:04:53]} 16. Qd1 {[%emt 0:03:04]} Bd5 {[%emt 0:06:00]} 17. c4 {[%emt 0:05:46]} Rxe1+ {[%emt 0:03:07]} 18. Bxe1 {[%emt 0:00:24]} Be6 {[%emt 0:00:50]} 19. Bc3 {[%emt 0:18:00]} Ng6 {[%emt 0:06:50]} 20. Nd2 {[%emt 0:09:00]} Bb8 {[%emt 0:05:22]} 21. b3 {[%emt 0:02:42]} Qd6 {[%emt 0:05:06]} 22. Nf1 {[%emt 0:00:49]} Nf4 {[%emt 0:08:43]} 23. Be4 {[%emt 0:00:41]} Ng6 {[%emt 0:05:28]} 24. Qc2 {[%emt 0:03:18]} Qf4 {[%emt 0:02:06]} 25. g3 {[%emt 0:04:32]} Qd6 {[%emt 0:00:54]} 26. Bf5 {[%emt 0:01:31]} Qd7 {[%emt 0:01:34]} 27. Ne3 {[%emt 0:01:01]} Ne7 {[%emt 0:06:50]} 28. Bxh7+ {[%emt 0:01:48]} Kh8 {[%emt 0:01:06]} 29. Be4 {[%emt 0:00:48]} f5 {[%emt 0:01:21]} 30. d5 {[%emt 0:03:30]} fxe4 {[%emt 0:00:51]} 31. dxe6 {[%emt 0:00:03]} Qxe6 {[%emt 0:00:12]} 32. Kg2 {[%emt 0:00:54]} Nf5 {[%emt 0:02:49]} 33. Qd2 {[%emt 0:00:32]} Bc7 {[%emt 0:01:19]} 34. Nxf5 {[%emt 0:01:13]} Qxf5 {[%emt 0:00:18]} 35. Qd4 {[%emt 0:00:03]} f6 {[%emt 0:03:06]} 36. Qe3 {[%emt 0:00:39]} 1/2-1/2

[Event "FIDE WSTC Open 50 2025"]
[Site "Prague"]
[Date "2025.02.21"]
[Round "5.32"]
[White "Liu, Shilan"]
[Black "Merx, Bob"]
[Result "1/2-1/2"]
[Annotator "NA"]
[ECO "C90"]
[WhiteElo "2093"]
[BlackElo "1968"]
[PlyCount "91"]
[EventDate "2025.02.17"]
[EventType "team-tourn"]
[EventCountry "CZE"]
[SourceTitle "playchess.com"]
[Source "ChessBase"]
[SourceQuality "1"]
[TimeControl "40/5400+30:1800+30"]

1. e4 {[%emt 0:00:04]} e5 {[%emt 0:00:00]} 2. Nf3 {[%emt 0:00:10]} Nc6 {[%emt 0:00:00]} 3. Bb5 {[%emt 0:00:07]} a6 {[%emt 0:00:04]} 4. Ba4 {[%emt 0:00:06]} Nf6 {[%emt 0:00:14]} 5. d3 {[%emt 0:00:09]} b5 {[%emt 0:01:49]} 6. Bb3 {[%emt 0:00:07]} Be7 {[%emt 0:01:57]} 7. O-O {[%emt 0:00:28]} d6 {[%emt 0:00:39]} 8. c3 {[%emt 0:00:08]} O-O {[%emt 0:01:24]} 9. Re1 {[%emt 0:00:44]} Nb8 {[%emt 0:01:52]} 10. Nbd2 {[%emt 0:02:22]} Nbd7 {[%emt 0:00:23]} 11. d4 {[%emt 0:02:22]} h6 {[%emt 0:00:58]} 12. Nf1 {[%emt 0:00:27]} Re8 {[%emt 0:00:30]} 13. Ng3 {[%emt 0:00:14]} Bf8 {[%emt 0:00:27]} 14. Bd2 {[%emt 0:08:21]} Bb7 {[%emt 0:10:58]} 15. Bc2 {[%emt 0:01:35]} g6 {[%emt 0:26:07]} 16. h3 {[%emt 0:06:54]} Bg7 {[%emt 0:00:30]} 17. dxe5 {[%emt 0:02:17]} dxe5 {[%emt 0:01:18]} 18. Be3 {[%emt 0:00:44]} Bf8 {[%emt 0:06:15]} 19. Qc1 {[%emt 0:03:00]} Kh7 {[%emt 0:00:41]} 20. Rd1 {[%emt 0:01:35]} Qe7 {[%emt 0:02:55]} 21. b4 c5 {[%emt 0:00:32]} 22. a3 {[%emt 0:08:09]} c4 {[%emt 0:05:30]} 23. a4 {[%emt 0:00:25]} Red8 {[%emt 0:07:34]} 24. Rd2 {[%emt 0:05:02]} Qe6 {[%emt 0:05:05]} 25. a5 {[%emt 0:01:11]} Bc6 {[%emt 0:06:58]} 26. Nh2 {[%emt 0:03:14]} Rac8 {[%emt 0:00:58]} 27. Nf3 {[%emt 0:08:55]} Nb8 {[%emt 0:01:03]} 28. Rxd8 {[%emt 0:01:57]} Rxd8 {[%emt 0:00:06]} 29. Bb6 {[%emt 0:00:06]} Rc8 {[%emt 0:01:11]} 30. Qe3 {[%emt 0:01:37]} Nbd7 {[%emt 0:03:47]} 31. Ba7 {[%emt 0:00:24]} Qe8 {[%emt 0:01:13]} 32. Qe2 {[%emt 0:05:35]} Ra8 {[%emt 0:00:10]} 33. Be3 {[%emt 0:00:07]} Qc8 {[%emt 0:00:11]} 34. Re1 {[%emt 0:01:00]} Qb7 {[%emt 0:00:07]} 35. Bc1 {[%emt 0:00:08]} Re8 {[%emt 0:02:42]} 36. Nh2 {[%emt 0:03:57]} Re6 {[%emt 0:00:46]} 37. h4 {[%emt 0:03:12]} Ng8 {[%emt 0:02:59]} 38. h5 {[%emt 0:00:15]} Ndf6 {[%emt 0:01:46]} 39. hxg6+ {[%emt 0:00:33]} fxg6 {[%emt 0:00:04]} 40. Nf3 {[%emt 0:01:23]} Re8 {[%emt 0:01:41]} 41. Rd1 {[%emt 0:30:25]} Bd7 {[%emt 0:33:24]} 42. Nh2 {[%emt 0:03:03]} Qc6 {[%emt 0:01:23]} 43. Qe3 {[%emt 0:04:45]} Bd6 {[%emt 0:02:38]} 44. Qe2 {[%emt 0:07:32]} Be6 {[%emt 0:00:00]} 45. Be3 {[%emt 0:00:00]} Bc7 {[%emt 0:00:00]} 46. Rd2 {[%emt 0:00:00]} 1/2-1/2

[Event "FIDE WSTC Open 50 2025"]
[Site "Prague"]
[Date "2025.02.21"]
[Round "5.33"]
[White "Aagaard, Jacob"]
[Black "Sikorova, Olga"]
[Result "1-0"]
[Annotator "TA"]
[ECO "C18"]
[WhiteElo "2435"]
[BlackElo "2134"]
[PlyCount "117"]
[EventDate "2025.02.17"]
[EventType "team-tourn"]
[EventCountry "CZE"]
[SourceTitle "playchess.com"]
[Source "ChessBase"]
[SourceQuality "1"]
[TimeControl "40/5400+30:1800+30"]

{[%evp 13,117,6,5,-1,0,14,3,0,10,7,33,11,27,16,10,17,23,23,30,17,41,-2,-8,-1,27,25,86,0,0,0,0,0,0,0,0,-8,0,-49,-12,-54,-54,-81,-60,-73,-49,-69,0,-48,0,0,0,0,0,0,0,-49,-28,-62,44,44,44,44,140,44,47,47,177,177,512,530,515,520,729,699,730,730,728,727,731,731,730,695,690,675,638,593,781,924,907,999,1141,1144,2601,2813,2867,2575,1949,1816,1728,1597,1175,1167,1141,1571,1386,1330]} 1. e4 {[%emt 0:00:23]} e6 {[%emt 0:00:12]} 2. d4 {[%emt 0:00:08]} d5 {[%emt 0:00:08]} 3. Nc3 {[%emt 0:00:07]} Bb4 {[%emt 0:00:09]} 4. e5 {[%emt 0:00:12]} c5 {[%emt 0:00:08]} 5. a3 {[%emt 0:00:07]} Bxc3+ {[%emt 0:00:07]} 6. bxc3 {[%emt 0:00:03]} Qa5 {[%emt 0:00:16]} 7. Bd2 {[%emt 0:00:21]} Qa4 {[%emt 0:00:24]} 8. h4 {[%emt 0:00:15] C18: French: 3 Nc3 Bb4: Main line: 7 h4 and 7 Qg4.} Nc6 {[%emt 0:04:21]} 9. h5 {[%emt 0:00:28]} h6 {[%emt 0:00:21]} 10. Qg4 {[%emt 0:00:37] The position is equal.} Kf8 {[%emt 0:12:53]} 11. Qd1 {[%emt 0:00:10]} c4 {[%emt 0:01:55]} 12. Nf3 {[%emt 0:07:32]} Bd7 {[%emt 0:00:36]} 13. Nh4 {[%emt 0:00:49]} Nge7 {[%emt 0:02:23]} 14. g4 {[%emt 0:01:06]} Ke8 {[%emt 0:06:08]} 15. Bh3 {[%emt 0:01:11]} Kd8 $1 {[%emt 0:02:50]} 16. f4 {[%emt 0:00:54]} g6 {[%emt 0:04:12]} 17. Be3 $146 {[%emt 0:07:51]} (17. O-O Kc7 18. f5 g5 19. f6 Nc8 20. Nf3 Nb6 21. Nxg5 hxg5 22. Bxg5 Qa5 23. Bd2 {1-0 Pijpers,A (2483)-Sarrau,J (2406) NED-chT 2122 2021 (1.5)}) 17... Kc7 {[%emt 0:07:36]} 18. Kd2 {[%emt 0:03:09]} gxh5 {[%emt 0:05:35]} 19. gxh5 {[%emt 0:00:34]} Nf5 {[%emt 0:00:13]} (19... Raf8 $11 {keeps the balance.}) 20. Bxf5 {[%emt 0:01:11]} (20. Nxf5 $16 exf5 21. Rg1) 20... exf5 $11 {[%emt 0:00:06]} 21. Qf3 {[%emt 0:00:49]} Be6 {[%emt 0:00:41]} 22. Bf2 {[%emt 0:03:06]} Rag8 {[%emt 0:01:04]} 23. Ng2 {[%emt 0:04:37]} Qa5 {[%emt 0:06:17]} 24. Rh2 {[%emt 0:10:37] White is weak on the light squares} Rg4 {[%emt 0:04:13]} 25. Ke2 {[%emt 0:00:50]} (25. Kc1 $11 {should be considered.}) 25... Kd7 {[%emt 0:03:50]} 26. Kf1 {[%emt 0:09:11]} (26. Be1 $5) 26... Rhg8 {[%emt 0:05:36] Black has strong rooks and is better} 27. Qe3 {[%emt 0:03:37]} a6 {[%emt 0:09:11]} 28. Be1 {[%emt 0:01:35]} Qb6 {[%emt 0:01:17]} 29. Qc1 {[%emt 0:04:08]} Qa5 {[%emt 0:06:45]} (29... Kc8 $15) 30. a4 {[%emt 0:02:31]} (30. Qe3 $11) 30... Qd8 {[%emt 0:00:18]} (30... Kc7 $15) 31. Qb2 {[%emt 0:01:19]} Kc8 {[%emt 0:01:05][%cal Bd7c8,Bc8b8,Bb8a8,Ba8a7][%mdl 32]} 32. Rb1 {[%emt 0:02:00][%csl Gb1][%cal Rb2b7]} Qc7 {[%emt 0:00:48]} 33. Bh4 {[%emt 0:01:48]} Kb8 {[%emt 0:01:08]} 34. Qa3 {[%emt 0:00:22]} (34. Kf2 $11) 34... Ka8 {[%emt 0:00:43]} 35. Qc5 {[%emt 0:03:45]} Qa5 {[%emt 0:00:36]} (35... Qd7 $15) 36. Qxa5 $1 $14 {[%emt 0:00:13]} Nxa5 {[%emt 0:00:01]} 37. Kf2 {[%emt 0:00:24]} Bd7 {[%emt 0:05:16] [#]} ({Black should try} 37... Nc6 $14) 38. Ra1 {[%emt 0:00:11]} (38. Kf3 $1 $16) 38... Ka7 {[%emt 0:04:00]} 39. Kf3 {[%emt 0:00:39]} b6 {[%emt 0:01:16] A mistake that costs the game.} (39... Re8 $14) 40. Ne3 $18 {[%emt 0:01:01][%csl LRd5,LRg4]} Rg1 $2 {[%emt 0:01:57] [#]} (40... Nc6 {is a better chance.} 41. Nxg4 (41. Nxd5 Nxd4+ 42. cxd4 Bc6 $17) 41... fxg4+ 42. Kg3 Bf5) 41. Rxg1 $1 {[%emt 0:31:18] White is clearly winning.} ({Not} 41. Rh1 Rxh1 42. Rxh1 Nc6 $16) 41... Rxg1 {[%emt 0:30:05][%cal Bg8g1,Bg1b1,Bb1b5][%mdl 32] [#]} 42. Bg5 $1 {[%emt 0:00:44]} Be6 {[%emt 0:00:00]} (42... Nc6 43. Bxh6) 43. Kf2 {[%emt 0:00:00]} Rb1 {[%emt 0:00:00]} 44. Bxh6 {[%emt 0:00:00]} b5 {[%emt 0:00:00]} 45. axb5 {[%emt 0:00:00]} Rxb5 {[%emt 0:00:00]} 46. Bg7 {[%emt 0:00:00]} Nc6 {[%emt 0:00:00]} 47. h6 {[%emt 0:00:00]} Ne7 {[%emt 0:00:00]} 48. h7 {[%emt 0:00:00]} Ng6 {[%emt 0:00:00]} 49. Rh6 Rb8 {[%emt 0:00:00] [#] Dodges Rxg6} 50. Rxg6 $1 {[%emt 0:00:00]} fxg6 {[%emt 0:00:00]} 51. h8=Q {[%emt 0:00:00]} Rxh8 {[%emt 0:00:00]} 52. Bxh8 {[%emt 0:00:00][%mdl 4096] Endgame} a5 {[%emt 0:00:00]} 53. Bf6 {[%emt 0:00:00]} Kb7 {[%emt 0:00:00]} 54. Kg3 {[%emt 0:00:00]} Kc7 {[%emt 0:00:00]} 55. Be7 {[%emt 0:00:00]} Kd7 {[%emt 0:00:00]} 56. Bc5 {[%emt 0:00:00] aiming for Kh4.} Ke8 {[%emt 0:00:00]} 57. Kh4 {[%emt 0:00:00]} Kf7 {[%emt 0:00:00]} 58. Kg5 {[%emt 0:00:00] Intending Kh6 and mate.} Kg7 {[%emt 0:00:00]} 59. Ng2 {[%emt 0:00:00] Weighted Error Value: White=0.13 (very precise) /Black=0.37  Mistake:       	White=5     	Black=7      Inaccurate:     	White=3     	Black=4      OK:         	White=14    	Black=7      Best:        	White=2     	Black=2      Strong:       	White=2     	Black=1      Brilliant:      	White=1     	---} 1-0

[Event "FIDE WSTC Open 50 2025"]
[Site "Prague"]
[Date "2025.02.21"]
[Round "5.34"]
[White "Folkova, Martina"]
[Black "Jaksland, Tim"]
[Result "1/2-1/2"]
[Annotator "NA"]
[ECO "C70"]
[WhiteElo "2031"]
[BlackElo "2143"]
[PlyCount "32"]
[EventDate "2025.02.17"]
[EventType "team-tourn"]
[EventCountry "CZE"]
[SourceTitle "playchess.com"]
[Source "ChessBase"]
[SourceQuality "1"]
[TimeControl "40/5400+30:1800+30"]

1. e4 {[%emt 0:00:06]} e5 {[%emt 0:00:16]} 2. Nf3 {[%emt 0:00:04]} Nc6 {[%emt 0:00:06]} 3. Bb5 {[%emt 0:00:06]} a6 {[%emt 0:00:20]} 4. Ba4 {[%emt 0:00:04]} Nge7 {[%emt 0:00:11]} 5. c3 {[%emt 0:01:10]} Ng6 {[%emt 0:00:33]} 6. d4 {[%emt 0:05:30]} exd4 {[%emt 0:01:16]} 7. cxd4 {[%emt 0:00:08]} Bb4+ {[%emt 0:00:31]} 8. Nc3 {[%emt 0:00:57]} d5 {[%emt 0:01:10]} 9. exd5 {[%emt 0:06:41]} Bxc3+ {[%emt 0:01:05]} 10. bxc3 {[%emt 0:00:04]} Qxd5 {[%emt 0:00:07]} 11. Qe2+ {[%emt 0:09:42]} Qe6 {[%emt 0:25:01]} 12. Ba3 {[%emt 0:16:58]} Qxe2+ {[%emt 0:06:37]} 13. Kxe2 {[%emt 0:00:04]} Bd7 {[%emt 0:06:41]} 14. Bb3 {[%emt 0:11:21]} Na5 {[%emt 0:09:32]} 15. Rhe1 {[%emt 0:02:31]} Nxb3 {[%emt 0:06:41]} 16. Kf1+ {[%emt 0:03:47]} Be6 {[%emt 0:04:09]} 1/2-1/2

[Event "FIDE WSTC Open 50 2025"]
[Site "Prague"]
[Date "2025.02.21"]
[Round "5.36"]
[White "Cejkova, Miroslava"]
[Black "Nielsen, Niels-Peter"]
[Result "1/2-1/2"]
[Annotator "NA"]
[ECO "C03"]
[WhiteElo "1980"]
[BlackElo "2086"]
[PlyCount "35"]
[EventDate "2025.02.17"]
[EventType "team-tourn"]
[EventCountry "CZE"]
[SourceTitle "playchess.com"]
[Source "ChessBase"]
[SourceQuality "1"]
[TimeControl "40/5400+30:1800+30"]

1. e4 {[%emt 0:00:04]} e6 {[%emt 0:00:05]} 2. d4 {[%emt 0:00:52]} d5 {[%emt 0:00:09]} 3. Nd2 {[%emt 0:00:40]} h6 {[%emt 0:00:12]} 4. c3 {[%emt 0:01:40]} dxe4 {[%emt 0:04:08]} 5. Nxe4 {[%emt 0:01:20]} Nf6 {[%emt 0:01:40]} 6. Nxf6+ {[%emt 0:05:03]} Qxf6 {[%emt 0:00:15]} 7. Nf3 {[%emt 0:00:32]} Bd6 {[%emt 0:05:05]} 8. Be3 {[%emt 0:04:29]} Bd7 {[%emt 0:04:25]} 9. Qb3 {[%emt 0:12:25]} O-O {[%emt 0:00:38]} 10. Be2 {[%emt 0:01:03]} Bc6 {[%emt 0:05:37]} 11. O-O {[%emt 0:03:13]} Nd7 {[%emt 0:05:37]} 12. c4 {[%emt 0:09:55]} b6 {[%emt 0:02:45]} 13. Rfd1 {[%emt 0:06:51]} Rad8 {[%emt 0:08:49]} 14. Qc2 {[%emt 0:06:02]} Qe7 {[%emt 0:14:41]} 15. Rac1 {[%emt 0:04:41]} Bxf3 {[%emt 0:01:42]} 16. Bxf3 {[%emt 0:00:06]} c5 {[%emt 0:01:43]} 17. dxc5 {[%emt 0:07:30]} Bxc5 {[%emt 0:01:14]} 18. Bxc5 {[%emt 0:07:22]} 1/2-1/2

[Event "FIDE WSTC Open 50 2025"]
[Site "Prague"]
[Date "2025.02.21"]
[Round "5.37"]
[White "Belakovskaia, Anjelina"]
[Black "Bryson, Douglas M"]
[Result "1/2-1/2"]
[Annotator "RC"]
[ECO "A00"]
[WhiteElo "2166"]
[BlackElo "2295"]
[PlyCount "49"]
[EventDate "2025.02.17"]
[EventType "team-tourn"]
[EventCountry "CZE"]
[SourceTitle "playchess.com"]
[Source "ChessBase"]
[SourceQuality "1"]
[TimeControl "40/5400+30:1800+30"]

1. b4 {[%emt 0:00:03]} e5 {[%emt 0:00:35]} 2. a3 {[%emt 0:00:25]} d5 {[%emt 0:00:47]} 3. Bb2 {[%emt 0:00:25]} Bd6 {[%emt 0:01:39]} 4. e3 {[%emt 0:00:35]} Nf6 {[%emt 0:01:17]} 5. c4 {[%emt 0:01:31]} c6 {[%emt 0:03:55]} 6. Qc2 {[%emt 0:25:12]} O-O {[%emt 0:04:26]} 7. d3 {[%emt 0:00:09]} Re8 {[%emt 0:04:28]} 8. Nd2 {[%emt 0:14:53]} d4 {[%emt 0:12:43]} 9. e4 {[%emt 0:06:08]} a5 {[%emt 0:02:55]} 10. c5 {[%emt 0:12:03]} Bc7 {[%emt 0:00:47]} 11. f4 {[%emt 0:09:42]} Ng4 {[%emt 0:27:04]} 12. fxe5 {[%emt 0:00:38]} Ne3 {[%emt 0:06:24]} 13. Qb1 {[%emt 0:01:01]} Bg4 {[%emt 0:05:25]} 14. Ngf3 {[%emt 0:16:59]} Bxf3 {[%emt 0:00:20]} 15. Nxf3 {[%emt 0:00:03]} Bxe5 {[%emt 0:00:30]} 16. Kf2 {[%emt 0:02:07]} Ng4+ {[%emt 0:07:23]} 17. Kg1 {[%emt 0:02:19]} Bf4 {[%emt 0:00:24]} 18. Bc1 {[%emt 0:02:13]} Be3+ {[%emt 0:00:27]} 19. Bxe3 {[%emt 0:00:03]} dxe3 {[%emt 0:00:06]} 20. h3 {[%emt 0:01:57]} Nf2 {[%emt 0:00:31]} 21. Rh2 {[%emt 0:01:24]} axb4 {[%emt 0:00:50]} 22. axb4 {[%emt 0:00:02]} Rxa1 {[%emt 0:02:34]} 23. Qxa1 {[%emt 0:00:01]} Nxd3 {[%emt 0:00:26]} 24. Qc3 {[%emt 0:00:01]} Ne5 {[%emt 0:03:51]} 25. Qxe3 {[%emt 0:02:02]} 1/2-1/2